lending/lending_fUSD_20250210
["ID","MTS","AMOUNT","RATE_DAILY","PERIOD"]
[352542275,1739159435424,-500.0,9.979e-05,2]
[352542276,1739159435433,-500.0,9.979e-05,2]
[352542277,1739159435443,-500.0,9.979e-05,2]
[352542278,1739159435452,-500.0,9.979e-05,2]
[352542279,1739159435461,-278.23785545,9.979e-05,2]
[352542280,1739159435471,-500.0,9.979e-05,2]
[352542281,1739159435480,-151.0,9.979e-05,2]
[352542282,1739159435489,-500.0,9.979e-05,2]
[352542283,1739159435499,-500.0,9.979e-05,2]
[352542284,1739159435508,-500.0,9.979e-05,2]
[352542285,1739159435518,-500.0,9.979e-05,2]
[352542286,1739159435527,-500.0,9.979e-05,2]
[352542287,1739159435536,-500.0,9.979e-05,2]
[352542288,1739159435545,-500.0,9.979e-05,2]
[352542289,1739159435554,-1712.74,9.979e-05,2]
[352542290,1739159435563,-500.0,9.979e-05,2]
[352542291,1739159435574,-500.0,9.979e-05,2]
[352542292,1739159435585,-500.0,9.979e-05,2]
[352542293,1739159435594,-500.0,9.979e-05,2]
[352542294,1739159435604,-500.0,9.979e-05,2]
[352542295,1739159435614,-500.0,9.979e-05,2]
[352542296,1739159435624,-500.0,9.979e-05,2]
[352542297,1739159435635,-500.0,9.979e-05,2]
[352542298,1739159435645,-500.0,9.979e-05,2]
[352542299,1739159435654,-223.06616156,9.979e-05,2]
[352542300,1739159435663,-360.47470218,9.979e-05,2]
[352542301,1739159435674,-500.0,9.979e-05,2]
[352542302,1739159435684,-151.0,9.979e-05,2]
[352542303,1739159435693,-506.51234361,9.979e-05,2]
[352542304,1739159435703,-151.0,9.979e-05,2]
[352542305,1739159435713,-234.3,9.979e-05,2]
[352542306,1739159435723,-500.0,9.979e-05,2]
[352542307,1739159435732,-500.0,9.979e-05,2]
[352542308,1739159435742,-513.07989621,9.979e-05,2]
[352542309,1739159435751,-500.0,9.979e-05,2]
[352542310,1739159435761,-1510.0,9.98e-05,2]
[352542311,1739159435770,-482.70543583,9.98e-05,2]
[352542312,1739159435787,-7584.80622634,9.98e-05,2]
[352542318,1739159438502,-145555.75099501,9.98e-05,2]
[352542319,1739159438609,-2005.56553113,9.98e-05,2]
[352542502,1739159440495,-518.07967444,9.979e-05,2]
[352542504,1739159440506,-17694.9463871,9.98e-05,2]
[352542822,1739159443418,-3075.72453735,9.98e-05,2]
[352542855,1739159443577,-273.9235801,9.98e-05,2]
[352543223,1739159446733,-500.0,9.979e-05,2]
[352543226,1739159446743,-1195.0764199,9.98e-05,2]
[352543231,1739159446757,-9682.9720031,9.98e-05,2]
[352545747,1739160139881,373.0,0.0002,120]
[352545762,1739160631757,-1208.98,8.219e-05,2]
[352545763,1739160631767,-300.0,8.835e-05,2]
[352545764,1739160631776,-6206.62334819,8.836e-05,2]
[352545765,1739160631810,-169.78615181,8.836e-05,2]
[352545766,1739160631821,-974.08711541,8.836e-05,2]
[352545767,1739160631863,-1298.24234568,8.836e-05,2]
[352545768,1739160631875,-1028.79,8.836e-05,2]
[352545769,1739160631917,-254.33428482,8.836e-05,2]
[352545770,1739160631973,-17916.18145409,8.836e-05,2]
[352545771,1739160631982,-14966.18748583,8.836e-05,2]
[352545772,1739160632026,-421.97589527,8.836e-05,2]
[352545992,1739160639870,-1942.31076631,8.836e-05,2]
[352545995,1739160639882,-1577.39500003,8.836e-05,2]
[352545997,1739160639893,-676.78900017,8.836e-05,2]
[352548764,1739161577619,158.06146707,8.174e-05,2]
[352548783,1739161831755,-1209.496,8.219e-05,2]
[352548785,1739161831767,-16.654,8.219e-05,2]
[352548787,1739161831776,-250.0,8.435e-05,2]
[352548788,1739161831955,-200.0,8.549e-05,2]
[352548789,1739161831967,-183.49931514,8.608e-05,2]
[352548790,1739161831979,-225.11068486,8.608e-05,2]
[352548791,1739161831988,-7633.43655768,8.675e-05,2]
[352548792,1739161832000,-6994.30586636,8.675e-05,2]
[352548793,1739161832024,-472.12295122,8.675e-05,2]
[352548794,1739161832040,-1833.28462474,8.675e-05,2]
[352548795,1739161832049,-254.75,8.788e-05,2]
[352548796,1739161832059,-150.0,8.79e-05,2]
[352548797,1739161832068,-438.77,8.79e-05,2]
[352548798,1739161832078,-150.0,8.79e-05,2]
[352548799,1739161832087,-150.0,8.79e-05,2]
[352548800,1739161832096,-150.0,8.79e-05,2]
[352548801,1739161832106,-438.77,8.79e-05,2]
[352548802,1739161832115,-24584.90970507,8.836e-05,2]
[352548803,1739161832127,-19841.8465706,8.836e-05,2]
[352548804,1739161832138,-324.92886602,8.836e-05,2]
[352548805,1739161832150,-843.64745662,8.836e-05,2]
[352548806,1739161832161,-5862.56637418,8.836e-05,2]
[352548807,1739161832172,-12895.00472751,8.836e-05,2]
[352548808,1739161832182,-438.77,8.84e-05,2]
[352548809,1739161832191,-150.0,8.84e-05,2]
[352548810,1739161832201,-150.0,8.84e-05,2]
[352548811,1739161832210,-165.61,8.84e-05,2]
[352548812,1739161832219,-150.0,8.84e-05,2]
[352548813,1739161832230,-438.77,8.84e-05,2]
[352548814,1739161832238,-150.0,8.84e-05,2]
[352548815,1739161832248,-150.0,8.84e-05,2]
[352548816,1739161832257,-150.0,8.84e-05,2]
[352548817,1739161832268,-950.18,8.877e-05,2]
[352548818,1739161832277,-438.77,8.88e-05,2]
[352548819,1739161832286,-150.0,8.88e-05,2]
[352548820,1739161832296,-150.0,8.88e-05,2]
[352548821,1739161832306,-150.0,8.88e-05,2]
[352548822,1739161832315,-438.77,8.88e-05,2]
[352548823,1739161832324,-150.0,8.88e-05,2]
[352548824,1739161832334,-150.0,8.88e-05,2]
[352548825,1739161832343,-150.0,8.88e-05,2]
[352548827,1739161832351,-150.0,8.88e-05,2]
[352548829,1739161832360,-438.77,8.88e-05,2]
[352548831,1739161832370,-877.43,8.88e-05,2]
[352548833,1739161832379,-150.0,8.88e-05,2]
[352548835,1739161832389,-150.0,8.88e-05,2]
[352548836,1739161832398,-150.0,8.88e-05,2]
[352548838,1739161832407,-150.0,8.88e-05,2]
[352548840,1739161832418,-150.0,8.88e-05,2]
[352548842,1739161832427,-150.0,8.88e-05,2]
[352548844,1739161832436,-438.77,8.88e-05,2]
[352548846,1739161832450,-438.77,8.88e-05,2]
[352548848,1739161832459,-438.77,8.88e-05,2]
[352548850,1739161832468,-150.0,8.88e-05,2]
[352548852,1739161832477,-150.0,8.88e-05,2]
[352548854,1739161832488,-1000.0,8.947e-05,2]
[352548856,1739161832498,-150.0,8.95e-05,2]
[352548858,1739161832507,-150.0,8.95e-05,2]
[352548860,1739161832518,-150.0,8.95e-05,2]
[352548862,1739161832528,-150.0,8.95e-05,2]
[352548864,1739161832538,-150.0,8.95e-05,2]
[352548865,1739161832547,-150.0,8.95e-05,2]
[352548867,1739161832557,-877.32,8.95e-05,2]
[352548869,1739161832566,-150.36,8.95e-05,2]
[352548871,1739161832575,-150.0,8.95e-05,2]
[352548873,1739161832585,-438.77,8.95e-05,2]
[352548875,1739161832593,-150.0,8.95e-05,2]
[352548877,1739161832602,-150.0,8.95e-05,2]
[352548879,1739161832611,-150.0,8.95e-05,2]
[352548881,1739161832621,-33596.17,8.95e-05,2]
[352548883,1739161832630,-299.99,8.95e-05,2]
[352548884,1739161832639,-150.99,8.95e-05,2]
[352548886,1739161832648,-500.0,8.972e-05,2]
[352548888,1739161832658,-5000.0,8.973e-05,2]
[352548890,1739161832667,-22766.6569979,8.973e-05,2]
[352548892,1739161832679,-14577.6738021,8.973e-05,2]
[352548894,1739161832689,-150.0,8.975e-05,2]
[352548896,1739161832699,-150.0,8.975e-05,2]
[352548898,1739161832708,-150.0,8.975e-05,2]
[352548900,1739161832718,-150.0,8.975e-05,2]
[352548902,1739161832727,-150.0,8.98e-05,2]
[352548904,1739161832736,-150.0,8.98e-05,2]
[352548906,1739161832745,-151.2,8.98e-05,2]
[352548908,1739161832754,-985.06,8.98e-05,2]
[352548910,1739161832763,-775.26,9.014e-05,2]
[352548911,1739161832774,-775.26,9.014e-05,2]
[352548913,1739161832784,-775.26,9.014e-05,2]
[352548915,1739161832793,-277.33,9.018e-05,2]
[352548917,1739161832802,-300.46,9.018e-05,2]
[352548919,1739161832812,-1984.27,9.018e-05,2]
[352548921,1739161832821,-151.06,9.018e-05,2]
[352548923,1739161832831,-438.77,9.018e-05,2]
[352548925,1739161832840,-150.0,9.018e-05,2]
[352548926,1739161832850,-150.0,9.018e-05,2]
[352548927,1739161832859,-598.17608522,9.05e-05,2]
[352548928,1739161832868,-249.59,9.056e-05,2]
[352548929,1739161832878,-150.0,9.142e-05,2]
[352548930,1739161832887,-985.61,9.151e-05,2]
[352548931,1739161832897,-303.97,9.151e-05,2]
[352548932,1739161832906,-334.07,9.151e-05,2]
[352548933,1739161832916,-985.61,9.151e-05,2]
[352548934,1739161832925,-985.61,9.151e-05,2]
[352548935,1739161832935,-985.61,9.151e-05,2]
[352548936,1739161832944,-985.61,9.151e-05,2]
[352548937,1739161832953,-985.61,9.151e-05,2]
[352548938,1739161832963,-985.61,9.151e-05,2]
[352548939,1739161832974,-985.61,9.151e-05,2]
[352548940,1739161832984,-462.63,9.151e-05,2]
[352548941,1739161832993,-438.77,9.178e-05,2]
[352548942,1739161833003,-402.15781786,9.264e-05,2]
[352548943,1739161833012,-553.84821719,9.285e-05,2]
[352548944,1739161833026,-150.0,9.308e-05,2]
[352548946,1739161833041,-438.11,9.315e-05,2]
[352548947,1739161833051,-150.0,9.315e-05,2]
[352548948,1739161833061,-438.77,9.315e-05,2]
[352548950,1739161833071,-150.0,9.315e-05,2]
[352548952,1739161833081,-438.77,9.315e-05,2]
[352548954,1739161833091,-150.0,9.315e-05,2]
[352548956,1739161833100,-438.77,9.315e-05,2]
[352548958,1739161833110,-150.0,9.315e-05,2]
[352548960,1739161833120,-150.0,9.315e-05,2]
[352548962,1739161833130,-438.77,9.315e-05,2]
[352548964,1739161833140,-438.77,9.315e-05,2]
[352548966,1739161833150,-150.0,9.315e-05,2]
[352548968,1739161833160,-150.0,9.315e-05,2]
[352548970,1739161833170,-705.73,9.315e-05,2]
[352548972,1739161833179,-150.0,9.315e-05,2]
[352548974,1739161833189,-1252.71727169,9.459e-05,2]
[352548976,1739161833198,-1252.7172717,9.459e-05,2]
[352548978,1739161833207,-402.15781786,9.469e-05,2]
[352548980,1739161833216,-150.0,9.474e-05,2]
[352548982,1739161833225,-404.5,9.562e-05,2]
[352548984,1739161833235,-8427.4722682,9.587e-05,2]
[352548986,1739161833245,-150.0,9.64e-05,2]
[352548988,1739161833254,-500.0,9.669e-05,2]
[352548990,1739161833263,-500.0,9.669e-05,2]
[352548992,1739161833274,-500.0,9.669e-05,2]
[352548993,1739161833283,-500.0,9.669e-05,2]
[352548995,1739161833293,-497.39,9.669e-05,2]
[352548998,1739161833303,-500.85039907,9.669e-05,2]
[352548999,1739161833313,-500.0,9.669e-05,2]
[352549001,1739161833323,-19750.54,9.67e-05,2]
[352549004,1739161833332,-29999.99,9.67e-05,2]
[352549006,1739161833343,-383.61,9.67e-05,2]
[352549007,1739161833352,-408.61,9.684e-05,2]
[352549009,1739161833362,-402.15781786,9.76e-05,2]
[352549012,1739161833372,-150.0,9.806e-05,2]
[352549013,1739161833382,-500.0,9.821e-05,2]
[352549015,1739161833392,-500.0,9.821e-05,2]
[352549018,1739161833403,-313.72943989,9.821e-05,2]
[352549020,1739161833415,-186.27056011,9.821e-05,2]
[352549022,1739161833425,-500.0,9.821e-05,2]
[352549024,1739161833434,-500.0,9.821e-05,2]
[352549026,1739161833445,-500.0,9.821e-05,2]
[352549028,1739161833457,-500.0,9.821e-05,2]
[352549030,1739161833466,-500.0,9.821e-05,2]
[352549032,1739161833477,-500.0,9.821e-05,2]
[352549034,1739161833487,-500.0,9.821e-05,2]
[352549036,1739161833496,-500.0,9.821e-05,2]
[352549038,1739161833506,-516.38,9.821e-05,2]
[352549040,1739161833517,-500.0,9.821e-05,2]
[352549042,1739161833526,-500.0,9.821e-05,2]
[352549044,1739161833535,-500.0,9.821e-05,2]
[352549045,1739161833545,-500.0,9.821e-05,2]
[352549048,1739161833555,-500.0,9.821e-05,2]
[352549050,1739161833564,-500.0,9.821e-05,2]
[352549051,1739161833574,-500.0,9.821e-05,2]
[352549054,1739161833584,-500.0,9.821e-05,2]
[352549055,1739161833595,-500.0,9.821e-05,2]
[352549057,1739161833605,-229.76284703,9.821e-05,2]
[352549060,1739161833617,-270.23715297,9.821e-05,2]
[352549062,1739161833627,-250.18278619,9.821e-05,2]
[352549064,1739161833638,-249.81721381,9.821e-05,2]
[352549066,1739161833648,-500.0,9.821e-05,2]
[352549068,1739161833658,-500.0,9.821e-05,2]
[352549070,1739161833667,-500.0,9.821e-05,2]
[352549072,1739161833677,-500.0,9.821e-05,2]
[352549074,1739161833687,-500.0,9.821e-05,2]
[352549076,1739161833696,-500.0,9.821e-05,2]
[352549078,1739161833706,-500.0,9.821e-05,2]
[352549080,1739161833717,-500.0,9.821e-05,2]
[352549082,1739161833729,-500.0,9.821e-05,2]
[352549084,1739161833739,-500.0,9.821e-05,2]
[352549086,1739161833749,-500.0,9.821e-05,2]
[352549088,1739161833758,-500.0,9.821e-05,2]
[352549090,1739161833767,-247.37143939,9.821e-05,2]
[352549093,1739161833783,-261.15856061,9.821e-05,2]
[352549095,1739161833797,-833.59376363,9.835e-05,2]
[352549096,1739161833806,-1500.56271436,9.848e-05,2]
[352549099,1739161833818,-961.54302815,9.848e-05,2]
[352549101,1739161833829,-301.76425749,9.848e-05,2]
[352549103,1739161833838,-345.22454491,9.85e-05,2]
[352549106,1739161833859,-357.65720722,9.85e-05,2]
[352549108,1739161833869,-445.62732278,9.853e-05,2]
[352549110,1739161833881,-18629.96930022,9.853e-05,2]
[352549112,1739161833891,-151.0,9.853e-05,2]
[352549114,1739161833900,-151.0,9.853e-05,2]
[352549116,1739161833911,-402.15781786,9.863e-05,2]
[352549118,1739161833921,-810.73396,9.898e-05,2]
[352549120,1739161833931,-500.0,9.898e-05,2]
[352549122,1739161833941,-500.0,9.898e-05,2]
[352549124,1739161833950,-500.0,9.898e-05,2]
[352549125,1739161833960,-500.0,9.898e-05,2]
[352549127,1739161833969,-500.0,9.898e-05,2]
[352549129,1739161833978,-500.0,9.898e-05,2]
[352549131,1739161833987,-500.0,9.898e-05,2]
[352549133,1739161833997,-500.0,9.898e-05,2]
[352549135,1739161834007,-500.0,9.898e-05,2]
[352549137,1739161834018,-500.0,9.898e-05,2]
[352549139,1739161834028,-500.0,9.898e-05,2]
[352549141,1739161834037,-500.0,9.898e-05,2]
[352549143,1739161834047,-500.0,9.898e-05,2]
[352549145,1739161834056,-500.0,9.898e-05,2]
[352549147,1739161834066,-500.0,9.898e-05,2]
[352549149,1739161834075,-500.0,9.898e-05,2]
[352549150,1739161834085,-500.0,9.898e-05,2]
[352549153,1739161834094,-500.0,9.898e-05,2]
[352549155,1739161834104,-500.0,9.898e-05,2]
[352549156,1739161834113,-500.0,9.898e-05,2]
[352549158,1739161834123,-500.0,9.898e-05,2]
[352549161,1739161834132,-500.0,9.898e-05,2]
[352549162,1739161834142,-530.24359226,9.898e-05,2]
[352549164,1739161834152,-500.0,9.898e-05,2]
[352549166,1739161834162,-500.0,9.898e-05,2]
[352549168,1739161834171,-500.0,9.898e-05,2]
[352549170,1739161834181,-500.0,9.898e-05,2]
[352549172,1739161834191,-500.0,9.898e-05,2]
[352549174,1739161834200,-500.0,9.898e-05,2]
[352549176,1739161834210,-500.0,9.898e-05,2]
[352549178,1739161834219,-500.0,9.898e-05,2]
[352549180,1739161834228,-542.15282688,9.898e-05,2]
[352549182,1739161834237,-500.0,9.898e-05,2]
[352549184,1739161834247,-500.0,9.898e-05,2]
[352549186,1739161834257,-500.0,9.898e-05,2]
[352549188,1739161834267,-460.96993433,9.898e-05,2]
[352549190,1739161834277,-500.0,9.898e-05,2]
[352549192,1739161834286,-500.0,9.898e-05,2]
[352549194,1739161834296,-500.0,9.898e-05,2]
[352549196,1739161834305,-500.0,9.898e-05,2]
[352549198,1739161834315,-354.70090634,9.898e-05,2]
[352549200,1739161834324,-500.0,9.898e-05,2]
[352549202,1739161834333,-500.0,9.898e-05,2]
[352549204,1739161834342,-500.0,9.898e-05,2]
[352549206,1739161834351,-500.0,9.898e-05,2]
[352549208,1739161834360,-500.0,9.898e-05,2]
[352549210,1739161834370,-500.0,9.898e-05,2]
[352549212,1739161834378,-500.0,9.898e-05,2]
[352549214,1739161834388,-184.4,9.898e-05,2]
[352549216,1739161834397,-500.0,9.898e-05,2]
[352549218,1739161834407,-500.0,9.898e-05,2]
[352549220,1739161834417,-298.93518632,9.898e-05,2]
[352549221,1739161834426,-500.0,9.898e-05,2]
[352549223,1739161834436,-500.0,9.898e-05,2]
[352549225,1739161834446,-500.0,9.898e-05,2]
[352549227,1739161834457,-500.0,9.898e-05,2]
[352549229,1739161834467,-500.0,9.898e-05,2]
[352549231,1739161834476,-500.0,9.898e-05,2]
[352549233,1739161834486,-500.0,9.898e-05,2]
[352549235,1739161834495,-186.40396783,9.898e-05,2]
[352549237,1739161834504,-500.0,9.898e-05,2]
[352549239,1739161834513,-500.0,9.898e-05,2]
[352549240,1739161834527,-36151.71408972,9.899e-05,2]
[352549242,1739161834536,-500.0,9.899e-05,2]
[352549244,1739161834546,-500.0,9.899e-05,2]
[352549247,1739161834556,-500.0,9.899e-05,2]
[352549249,1739161834566,-500.0,9.899e-05,2]
[352549251,1739161834576,-500.0,9.899e-05,2]
[352549253,1739161834586,-500.0,9.899e-05,2]
[352549255,1739161834596,-500.0,9.899e-05,2]
[352549257,1739161834605,-231.98915532,9.899e-05,2]
[352549259,1739161834615,-500.0,9.899e-05,2]
[352549261,1739161834624,-386.85475224,9.899e-05,2]
[352549263,1739161834633,-500.0,9.899e-05,2]
[352549265,1739161834642,-500.0,9.899e-05,2]
[352549267,1739161834651,-500.0,9.899e-05,2]
[352549269,1739161834661,-500.0,9.899e-05,2]
[352549271,1739161834670,-500.0,9.899e-05,2]
[352549273,1739161834679,-259.40824137,9.899e-05,2]
[352549275,1739161834688,-500.0,9.899e-05,2]
[352549277,1739161834698,-500.0,9.899e-05,2]
[352549279,1739161834707,-500.0,9.899e-05,2]
[352549281,1739161834716,-265.0171274,9.899e-05,2]
[352549283,1739161834725,-420.05104798,9.899e-05,2]
[352549285,1739161834735,-500.0,9.899e-05,2]
[352549287,1739161834744,-151.0,9.899e-05,2]
[352549289,1739161834753,-500.0,9.899e-05,2]
[352549290,1739161834762,-254.97963994,9.899e-05,2]
[352549293,1739161834773,-500.0,9.899e-05,2]
[352549295,1739161834782,-500.0,9.899e-05,2]
[352549296,1739161834791,-500.0,9.899e-05,2]
[352549299,1739161834801,-151.0,9.899e-05,2]
[352549301,1739161834810,-358.70361673,9.899e-05,2]
[352549302,1739161834820,-500.0,9.899e-05,2]
[352549305,1739161834829,-972.62862578,9.899e-05,2]
[352549306,1739161834839,-500.0,9.899e-05,2]
[352549309,1739161834848,-151.16344343,9.899e-05,2]
[352549311,1739161834857,-500.0,9.899e-05,2]
[352549312,1739161834866,-151.0,9.899e-05,2]
[352549314,1739161834875,-500.0,9.899e-05,2]
[352549316,1739161834884,-405.41128619,9.899e-05,2]
[352549318,1739161834893,-500.0,9.899e-05,2]
[352549320,1739161834904,-500.0,9.899e-05,2]
[352549323,1739161834913,-518.39421012,9.899e-05,2]
[352549324,1739161834922,-500.0,9.899e-05,2]
[352549326,1739161834932,-500.0,9.899e-05,2]
[352549328,1739161834941,-500.0,9.899e-05,2]
[352549330,1739161834951,-51327.92,9.9e-05,2]
[352549333,1739161834960,-151.0,9.9e-05,2]
[352549335,1739161834969,-151.0,9.9e-05,2]
[352549336,1739161834979,-151.0,9.9e-05,2]
[352549338,1739161834988,-151.0,9.9e-05,2]
[352549340,1739161834997,-151.0,9.9e-05,2]
[352549342,1739161835006,-151.0,9.9e-05,2]
[352549344,1739161835016,-151.0,9.9e-05,2]
[352549346,1739161835025,-151.0,9.9e-05,2]
[352549348,1739161835035,-151.0,9.9e-05,2]
[352549351,1739161835044,-151.0,9.9e-05,2]
[352549352,1739161835054,-151.0,9.9e-05,2]
[352549355,1739161835065,-151.0,9.9e-05,2]
[352549356,1739161835074,-151.0,9.9e-05,2]
[352549358,1739161835083,-151.0,9.9e-05,2]
[352549360,1739161835093,-151.0,9.9e-05,2]
[352549362,1739161835102,-151.0,9.9e-05,2]
[352549364,1739161835111,-151.0,9.9e-05,2]
[352549366,1739161835121,-151.0,9.9e-05,2]
[352549368,1739161835130,-151.0,9.9e-05,2]
[352549370,1739161835139,-151.0,9.9e-05,2]
[352549372,1739161835148,-151.0,9.9e-05,2]
[352549374,1739161835157,-151.0,9.9e-05,2]
[352549376,1739161835167,-151.0,9.9e-05,2]
[352549378,1739161835176,-151.0,9.9e-05,2]
[352549380,1739161835186,-151.0,9.9e-05,2]
[352549382,1739161835195,-151.0,9.9e-05,2]
[352549384,1739161835204,-151.0,9.9e-05,2]
[352549386,1739161835214,-151.0,9.9e-05,2]
[352549389,1739161835225,-151.0,9.9e-05,2]
[352549391,1739161835235,-151.0,9.9e-05,2]
[352549392,1739161835244,-151.0,9.9e-05,2]
[352549394,1739161835253,-151.0,9.9e-05,2]
[352549396,1739161835262,-151.0,9.9e-05,2]
[352549398,1739161835271,-151.0,9.9e-05,2]
[352549400,1739161835280,-171.45822614,9.9e-05,2]
[352549402,1739161835290,-151.038542,9.9e-05,2]
[352549404,1739161835300,-151.0,9.9e-05,2]
[352549406,1739161835309,-151.0,9.9e-05,2]
[352549408,1739161835318,-256.528537,9.9e-05,2]
[352549410,1739161835327,-150.666,9.921e-05,2]
[352549412,1739161835336,-639.788,9.921e-05,2]
[352549414,1739161835346,-573.729,9.921e-05,2]
[352549417,1739161835355,-1871.875,9.921e-05,2]
[352549418,1739161835365,-1265.0,9.921e-05,2]
[352549421,1739161835374,-907.0,9.921e-05,2]
[352549423,1739161835383,-2957.044,9.921e-05,2]
[352549424,1739161835392,-783.0,9.921e-05,2]
[352549426,1739161835401,-539.0,9.921e-05,2]
[352549428,1739161835410,-4030.137,9.921e-05,2]
[352549430,1739161835419,-1109.0,9.921e-05,2]
[352549432,1739161835428,-1273.0,9.921e-05,2]
[352549434,1739161835439,-3914.0,9.921e-05,2]
[352549436,1739161835450,-2028.766,9.921e-05,2]
[352549438,1739161835459,-150.0,9.921e-05,2]
[352549440,1739161835469,-151.0,9.97e-05,2]
[352549442,1739161835478,-4530.4195136,9.97e-05,2]
[352549444,1739161835487,-150.0,9.973e-05,2]
[352549446,1739161835498,-150.0,9.973e-05,2]
[352549448,1739161835507,-150.0,9.973e-05,2]
[352549450,1739161835516,-331.37,9.973e-05,2]
[352549452,1739161835526,-151.326479,9.973e-05,2]
[352549454,1739161835535,-1385.83815706,9.978e-05,2]
[352549456,1739161835544,-27724.4116881,9.978e-05,2]
[352549458,1739161835553,-151.0,9.978e-05,2]
[352549460,1739161835563,-151.0,9.978e-05,2]
[352549462,1739161835572,-500.0,9.978e-05,2]
[352549464,1739161835581,-500.0,9.978e-05,2]
[352549466,1739161835590,-500.0,9.978e-05,2]
[352549468,1739161835599,-500.0,9.978e-05,2]
[352549470,1739161835608,-507.99758478,9.978e-05,2]
[352549472,1739161835623,-503.41445207,9.978e-05,2]
[352549474,1739161835636,-27724.4116881,9.978e-05,2]
[352549476,1739161835646,-501.26007405,9.978e-05,2]
[352549478,1739161835655,-500.0,9.978e-05,2]
[352549480,1739161835664,-2078.82744493,9.978e-05,2]
[352549481,1739161835673,-310.75831256,9.978e-05,2]
[352549482,1739161835682,-524.19,9.978e-05,2]
[352549483,1739161835692,-285.76461726,9.978e-05,2]
[352549484,1739161835701,-502.91729631,9.978e-05,2]
[352549485,1739161835711,-501.64893566,9.978e-05,2]
[352549486,1739161835720,-576.17256248,9.978e-05,2]
[352549487,1739161835730,-500.0,9.978e-05,2]
[352549488,1739161835739,-555.80165409,9.978e-05,2]
[352549489,1739161835748,-617.74,9.978e-05,2]
[352549490,1739161835758,-500.0,9.978e-05,2]
[352549491,1739161835767,-500.0,9.978e-05,2]
[352549492,1739161835776,-503.98340993,9.978e-05,2]
[352549493,1739161835786,-500.0,9.978e-05,2]
[352549494,1739161835795,-476.41371659,9.978e-05,2]
[352549495,1739161835805,-502.01125165,9.978e-05,2]
[352549496,1739161835814,-515.52693936,9.978e-05,2]
[352549497,1739161835824,-502.97960315,9.978e-05,2]
[352549498,1739161835834,-500.0,9.978e-05,2]
[352549499,1739161835844,-151.0,9.978e-05,2]
[352549500,1739161835854,-151.0,9.978e-05,2]
[352549501,1739161835863,-500.0,9.978e-05,2]
[352549502,1739161835873,-500.0,9.978e-05,2]
[352549503,1739161835884,-500.0,9.978e-05,2]
[352549504,1739161835894,-500.0,9.978e-05,2]
[352549505,1739161835903,-500.0,9.978e-05,2]
[352549506,1739161835912,-500.0,9.978e-05,2]
[352549507,1739161835923,-505.00566725,9.978e-05,2]
[352549508,1739161835932,-549.60824675,9.978e-05,2]
[352549509,1739161835942,-500.0,9.978e-05,2]
[352549510,1739161835952,-500.0,9.978e-05,2]
[352549511,1739161835961,-513.05717378,9.978e-05,2]
[352549512,1739161835971,-506.12915492,9.978e-05,2]
[352549513,1739161835981,-504.92861269,9.978e-05,2]
[352549514,1739161836134,-500.30895191,9.978e-05,2]
[352549515,1739161836144,-502.18919045,9.978e-05,2]
[352549516,1739161836154,-538.80508753,9.978e-05,2]
[352549517,1739161836164,-501.83304074,9.978e-05,2]
[352549518,1739161836176,-506.95304658,9.978e-05,2]
[352549519,1739161836188,-504.32117926,9.978e-05,2]
[352549520,1739161836198,-570.67458409,9.978e-05,2]
[352549521,1739161836208,-501.77437507,9.978e-05,2]
[352549522,1739161836218,-502.6833303,9.978e-05,2]
[352549523,1739161836229,-502.58631763,9.978e-05,2]
[352549524,1739161836240,-506.82612512,9.978e-05,2]
[352549525,1739161836250,-501.69265251,9.978e-05,2]
[352549526,1739161836259,-502.12729462,9.978e-05,2]
[352549527,1739161836268,-5026.12854526,9.978e-05,2]
[352549528,1739161836278,-648.99464312,9.978e-05,2]
[352549529,1739161836287,-505.32283372,9.978e-05,2]
[352549530,1739161836296,-501.06485814,9.978e-05,2]
[352549531,1739161836305,-501.79130197,9.978e-05,2]
[352549532,1739161836315,-499.74470481,9.978e-05,2]
[352549533,1739161836324,-502.37382595,9.978e-05,2]
[352549534,1739161836334,-501.85182585,9.978e-05,2]
[352549535,1739161836343,-151.0,9.979e-05,2]